[Event "7th Sharjah Masters 2024"]
[Site "Sharjah"]
[Date "2024.05.19"]
[Round "6.42"]
[White "Sethuraman, S.P."]
[Black "Dronavalli, Harika"]
[Result "1-0"]
[ECO "C18"]
[WhiteElo "2593"]
[BlackElo "2504"]
[Annotator "RC"]
[PlyCount "165"]
[EventDate "2024.05.13"]
[EventType "swiss"]
[EventCountry "UAE"]
[SourceTitle "playchess.com"]
[Source "ChessBase"]
[SourceQuality "1"]
[TimeControl "5400+30"]

1. e4 {[%emt 1:31:00]} e6 {[%emt 1:31:00]} 2. d4 {[%emt 0:00:30]} d5 {[%emt 0:00:30]} 3. Nc3 {[%emt 0:00:30]} Bb4 {[%emt 0:00:30]} 4. e5 {[%emt 0:00:30]} c5 {[%emt 0:00:30]} 5. a3 {[%emt 0:00:30]} Ba5 {[%emt 0:00:30]} 6. b4 {[%emt 0:00:30]} cxd4 {[%emt 0:00:30]} 7. Qg4 {[%emt 0:00:30]} Kf8 {[%emt 0:00:30]} 8. Nb5 {[%emt 0:00:30]} Bb6 {[%emt 0:00:30]} 9. Nf3 {[%emt 0:00:30]} Nc6 {[%emt 0:00:30]} 10. Bb2 {[%emt 0:00:30]} Nge7 {[%emt 0:00:30]} 11. Nbxd4 {[%emt 0:00:30]} h5 {[%emt 0:00:30]} 12. Qf4 {[%emt 0:00:30]} Ng6 {[%emt 0:00:30]} 13. Nxc6 {[%emt 0:00:30]} Nxf4 {[%emt 0:00:30]} 14. Nxd8 {[%emt 0:00:30]} Bxd8 {[%emt 0:00:30]} 15. g3 {[%emt 0:00:30]} Ng6 {[%emt 0:00:30]} 16. Bd3 {[%emt 0:00:30]} h4 {[%emt 0:00:30]} 17. Kd2 {[%emt 0:00:30]} Bd7 {[%emt 0:00:30]} 18. b5 {[%emt 0:00:30]} hxg3 {[%emt 0:00:30]} 19. hxg3 {[%emt 0:00:30]} Rxh1 {[%emt 0:00:30]} 20. Rxh1 {[%emt 0:00:30]} Kg8 {[%emt 0:00:30]} 21. Bd4 {[%emt 0:00:30]} Be8 {[%emt 0:00:30]} 22. Re1 {[%emt 0:00:30]} Ne7 {[%emt 0:00:30]} 23. Bc5 {[%emt 0:00:30]} Nc8 {[%emt 0:00:30]} 24. Rh1 {[%emt 0:00:30]} g6 {[%emt 0:00:30]} 25. Nh2 {[%emt 0:00:30]} Nb6 {[%emt 0:00:30]} 26. Ng4 {[%emt 0:00:30]} Nd7 {[%emt 0:00:30]} 27. Bd4 {[%emt 0:00:30]} Kg7 {[%emt 0:00:30]} 28. a4 {[%emt 0:00:30]} Rc8 {[%emt 0:00:30]} 29. Bc3 {[%emt 0:00:30]} Be7 {[%emt 0:00:30]} 30. f3 {[%emt 0:00:30]} Bg5+ {[%emt 0:00:30]} 31. f4 {[%emt 0:00:30]} Be7 {[%emt 0:00:30]} 32. Bd4 {[%emt 0:00:30]} Bc5 {[%emt 0:00:30]} 33. Bc3 {[%emt 0:00:30]} Be7 {[%emt 0:00:30]} 34. a5 {[%emt 0:00:30]} Bd8 {[%emt 0:00:30]} 35. Ra1 {[%emt 0:00:30]} Be7 {[%emt 0:00:30]} 36. Rb1 {[%emt 0:00:30]} Bc5 {[%emt 0:00:30]} 37. Ke2 {[%emt 0:00:30]} Bf2 {[%emt 0:00:30]} 38. Bd2 {[%emt 0:00:30]} Bd4 {[%emt 0:00:30]} 39. Be3 {[%emt 0:00:30]} Bc3 {[%emt 0:00:30]} 40. Bxa7 {[%emt 0:00:30]} Bxa5 {[%emt 0:00:30]} 41. Bd4 {[%emt 0:00:30]} Bb6 {[%emt 0:00:30]} 42. Ke3 {[%emt 0:00:30]} Ra8 {[%emt 0:00:30]} 43. Bxb6 {[%emt 0:00:30]} Nxb6 {[%emt 0:00:30]} 44. Kd4 {[%emt 0:00:30]} Nd7 {[%emt 0:00:30]} 45. b6 {[%emt 0:00:30]} Ra4+ {[%emt 0:00:30]} 46. c4 {[%emt 0:00:30]} dxc4 {[%emt 0:00:30]} 47. Bxc4 {[%emt 0:00:30]} Nf8 {[%emt 0:00:30]} 48. Nf6 {[%emt 0:00:30]} Bc6 {[%emt 0:00:30]} 49. g4 {[%emt 0:00:30]} Ra3 {[%emt 0:00:30]} 50. Bb5 {[%emt 0:00:30]} Bg2 {[%emt 0:00:30]} 51. Rc1 {[%emt 0:00:30]} Rf3 {[%emt 0:00:30]} 52. Rc7 {[%emt 0:00:30]} Rxf4+ {[%emt 0:00:30]} 53. Ke3 {[%emt 0:00:30]} Rf3+ {[%emt 0:00:30]} 54. Ke2 {[%emt 0:00:30]} Rb3 {[%emt 0:00:30]} 55. Be8 {[%emt 0:00:30]} Kh6 {[%emt 0:00:30]} 56. Rxf7 {[%emt 0:00:30]} Rxb6 {[%emt 0:00:30]} 57. Rxf8 {[%emt 0:00:30]} Kg5 {[%emt 0:00:30]} 58. Kf2 {[%emt 0:00:30]} Bc6 {[%emt 0:00:30]} 59. Bxc6 {[%emt 0:00:30]} Rxc6 {[%emt 0:00:30]} 60. Ke3 {[%emt 0:00:30]} Rc3+ {[%emt 0:00:30]} 61. Kd4 {[%emt 0:00:30]} Rc1 {[%emt 0:00:30]} 62. Re8 {[%emt 0:00:30]} Rc6 {[%emt 0:00:30]} 63. Rb8 {[%emt 0:00:30]} b6 {[%emt 0:00:30]} 64. Rg8 {[%emt 0:00:30]} Rc1 {[%emt 0:00:30]} 65. Re8 {[%emt 0:00:30]} Rc6 {[%emt 0:00:30]} 66. Ne4+ {[%emt 0:00:30]} Kxg4 {[%emt 0:00:30]} 67. Nd6 {[%emt 0:00:30]} Rc1 {[%emt 0:00:30]} 68. Rxe6 {[%emt 0:00:30]} Rd1+ {[%emt 0:00:30]} 69. Ke3 {[%emt 0:00:30]} g5 {[%emt 0:00:30]} 70. Rg6 {[%emt 0:00:30]} b5 {[%emt 0:00:30]} 71. Rg8 {[%emt 0:00:30]} b4 {[%emt 0:00:30]} 72. Rb8 {[%emt 0:00:30]} Re1+ {[%emt 0:00:30]} 73. Kd4 {[%emt 0:00:30]} Kf4 {[%emt 0:00:30]} 74. Rf8+ {[%emt 0:00:30]} Kg4 {[%emt 0:00:30]} 75. Ne4 {[%emt 0:00:30]} b3 {[%emt 0:00:30]} 76. Nf2+ {[%emt 0:00:30]} Kg3 {[%emt 0:00:30]} 77. Nd3 {[%emt 0:00:30]} Re2 {[%emt 0:00:30]} 78. Rb8 {[%emt 0:00:30]} g4 {[%emt 0:00:30]} 79. Rxb3 {[%emt 0:00:30]} Kh2 {[%emt 0:00:30]} 80. Nf4 {[%emt 0:00:30]} Re1 {[%emt 0:00:30]} 81. Re3 {[%emt 0:00:30]} Rf1 {[%emt 0:00:30]} 82. Ke4 {[%emt 0:00:30]} g3 {[%emt 0:00:30]} 83. e6 {[%emt 0:00:30]} 1-0

[Event "7th Sharjah Masters 2024"]
[Site "Sharjah"]
[Date "2024.05.19"]
[Round "6.43"]
[White "Klimkowski, Jan"]
[Black "Suleymenov, Alisher"]
[Result "0-1"]
[ECO "C07"]
[WhiteElo "2518"]
[BlackElo "2501"]
[Annotator "TA"]
[PlyCount "112"]
[EventDate "2024.05.13"]
[EventType "swiss"]
[EventCountry "UAE"]
[SourceTitle "playchess.com"]
[Source "ChessBase"]
[SourceQuality "1"]
[TimeControl "5400+30"]

{[%evp 28,112,-21,-38,-41,-40,-54,-52,-46,-50,-50,-52,-54,-61,-20,-25,-18,-50,-43,-78,-78,-70,-34,-92,-86,-99,-105,-103,-95,-137,-107,-136,-141,-133,-111,-119,-108,-139,-137,-135,-104,-95,-103,-134,-123,-136,-135,-145,-152,-149,-146,-342,-171,-156,-125,-140,-140,-170,-175,-167,-170,-163,-180,-363,-380,-363,-339,-345,-354,-342,-315,-320,-327,-336,-320,-329,-299,-349,-356,-360,-349,-354,-348,-345,-338,-383,-383]} 1. e4 {[%emt 1:31:00]} e6 {[%emt 1:31:00]} 2. d4 {[%emt 0:00:30]} d5 {[%emt 0:00:30]} 3. Nd2 {[%emt 0:00:30]} c5 {[%emt 0:00:30]} 4. Ngf3 {[%emt 0:00:30]} cxd4 {[%emt 0:00:30]} 5. Nxd4 {[%emt 0:00:30]} Nf6 {[%emt 0:00:30]} 6. exd5 {[%emt 0:00:30]} Qxd5 {[%emt 0:00:30]} 7. Nb5 {[%emt 0:00:30] C07: French Tarrasch: 3...c5, 4 Ngf3 and 4 exd5 Qxd5.} Na6 {[%emt 0:00:30]} 8. Nc3 {[%emt 0:00:30]} Qd4 $146 {[%emt 0:00:30]} ({Predecessor:} 8... Qd8 9. a3 Bd7 10. Nc4 Be7 11. Nd6+ Kf8 12. Be3 Bc6 13. Ndb5 Qxd1+ 14. Rxd1 Bc5 {1-0 Kovalev,V (2623)-Maghsoodloo,P (2701) Chess.com Rapid Wk7 Swiss 2022 (8)}) 9. a3 {[%emt 0:00:30]} Nc5 {[%emt 0:00:30]} 10. Qe2 {[%emt 0:00:30]} a6 {[%emt 0:00:30]} 11. Nf3 {[%emt 0:00:30]} Qd6 {[%emt 0:00:30]} 12. b4 {[%emt 0:00:30]} Ncd7 {[%emt 0:00:30]} 13. Bb2 {[%emt 0:00:30]} Be7 {[%emt 0:00:30]} 14. g3 {[%emt 0:00:30]} b5 {[%emt 0:00:30]} 15. Ne4 {[%emt 0:00:30]} Qc7 {[%emt 0:00:30]} 16. Bg2 {[%emt 0:00:30]} Nxe4 {[%emt 0:00:30]} 17. Qxe4 {[%emt 0:00:30]} Bb7 {[%emt 0:00:30]} 18. Qe2 {[%emt 0:00:30]} Bf6 {[%emt 0:00:30]} 19. Bxf6 {[%emt 0:00:30]} Nxf6 {[%emt 0:00:30]} 20. O-O {[%emt 0:00:30]} Qc3 {[%emt 0:00:30]} 21. a4 {[%emt 0:00:30]} O-O {[%emt 0:00:30]} 22. axb5 {[%emt 0:00:30]} axb5 {[%emt 0:00:30]} (22... Qxb4 $2 {loses.} 23. bxa6 Bd5 24. Rfb1 $18) 23. Rab1 {[%emt 0:00:30]} Ra2 {[%emt 0:00:30]} 24. Rfc1 {[%emt 0:00:30]} Rc8 {[%emt 0:00:30]} 25. Ne1 {[%emt 0:00:30]} (25. Qd3 $1 $15) 25... Bxg2 $17 {[%emt 0:00:30]} 26. Kxg2 {[%emt 0:00:30]} Qc6+ {[%emt 0:00:30]} 27. Qf3 {[%emt 0:00:30]} Nd5 {[%emt 0:00:30]} (27... Qxf3+ 28. Kxf3 Nd5 29. Ra1 Nxb4 30. Rxa2 Nxa2 31. Ra1) 28. Rb3 {[%emt 0:00:30]} Qd6 {[%emt 0:00:30]} 29. Rd1 {[%emt 0:00:30]} Rc4 {[%emt 0:00:30]} 30. Kg1 {[%emt 0:00:30]} g6 {[%emt 0:00:30]} 31. h4 {[%emt 0:00:30]} h5 {[%emt 0:00:30]} 32. Rdb1 {[%emt 0:00:30]} Ra4 {[%emt 0:00:30]} (32... Rxb4 33. Rxb4 Nxb4 34. Qb3 $14) 33. Qd3 {[%emt 0:00:30]} Raxb4 {[%emt 0:00:30]} 34. Rxb4 {[%emt 0:00:30]} Rxb4 {[%emt 0:00:30]} 35. Rd1 {[%emt 0:00:30]} Qc5 {[%emt 0:00:30]} 36. Nf3 {[%emt 0:00:30]} Rc4 {[%emt 0:00:30]} 37. Rd2 {[%emt 0:00:30]} Kg7 {[%emt 0:00:30]} 38. Qe2 {[%emt 0:00:30]} Nc3 {[%emt 0:00:30]} 39. Qe1 $2 {[%emt 0:00:30]} (39. Qe5+ $17 Qxe5 40. Nxe5) 39... Re4 {[%emt 0:00:30]} (39... Ne4 $142 40. Re2 Nxg3) 40. Qf1 $19 {[%emt 0:00:30]} Rg4 {[%emt 0:00:30]} 41. Kh2 {[%emt 0:00:30]} Ra4 {[%emt 0:00:30]} 42. Qe1 {[%emt 0:00:30]} Ne4 {[%emt 0:00:30]} 43. Re2 {[%emt 0:00:30]} Qd5 {[%emt 0:00:30]} 44. Re3 {[%emt 0:00:30]} Nf6 {[%emt 0:00:30]} 45. Qc3 $2 {[%emt 0:00:30]} (45. Ne5 {was called for.}) 45... b4 $19 {[%emt 0:00:30]} 46. Qe5 {[%emt 0:00:30]} Qxe5 47. Nxe5 Ra2 {[%emt 0:01:00]} 48. Rb3 {[%emt 0:01:00]} Rxc2 {[%emt 0:00:30]} 49. Rxb4 Rxf2+ {[%emt 0:00:30]} 50. Kg1 {[%emt 0:01:00]} Rf5 {[%emt 0:00:30]} 51. Nc4 {[%emt 0:00:30]} Rc5 {[%emt 0:00:30]} 52. Kf2 {[%emt 0:00:30]} Nd5 {[%emt 0:00:30]} 53. Ra4 {[%emt 0:00:30]} Nc3 {[%emt 0:00:30]} 54. Rb4 {[%emt 0:00:30]} Ne4+ {[%emt 0:00:30]} 55. Kg2 {[%emt 0:00:30]} Rd5 {[%emt 0:00:30]} 56. Rb7 {[%emt 0:00:30]} Nd6 {[%emt 0:00:30]} (56... Rd3 57. Rxf7+ Kxf7 58. Ne5+ Kf6 59. Nxd3 $17) 0-1